bitfinex-derivatives/quotes_SOLF0:USTF0_20251230
["timestamp","ask_amount","ask_price","bid_price","bid_amount"]
[1767121716056,0.05508943,124.06,124.03,0.05959772]
[1767121717657,0.05508943,124.06,124.03,14.97959772]
[1767121717866,95.3,124.1,124.03,14.97959772]
[1767121718071,10.77153545,124.13,124.04,14.92]
[1767121718358,106.05153545,124.13,124.04,14.92]
[1767121718765,0.06170728,124.1,124.07,0.06017035]
[1767121719066,0.00170728,124.1,124.07,14.98017035]
[1767121719460,0.00170728,124.1,124.07,0.06017035]
[1767121728969,0.00170728,124.1,124.07,16.01017035]
[1767121729369,95.28,124.14,124.07,16.01017035]
[1767121730273,0.06091242,124.12,124.07,16.01017035]
[1767121730476,0.06091242,124.12,124.08,16.00611958]
[1767121730777,0.06184106,124.11,124.08,16.00611958]
[1767121730964,0.00184106,124.11,124.08,16.00611958]
[1767121731572,3.51393545,124.16,124.09,15.95]
[1767121732566,0.05304438,124.14,124.11,0.0602662]
[1767121732769,0.05304438,124.14,124.09,15.95]
[1767121733775,0.05304438,124.14,124.1,0.06153622]
[1767121735774,10.82397983,124.14,124.1,0.06153622]
[1767121735970,3.51393545,124.12,124.03,15.95]
[1767121736280,3.51393545,124.1,124.04,7.2627]
[1767121736580,3.51393545,124.1,124.04,23.2127]
[1767121737078,0.00135763,124.08,124.06,0.06019272]
[1767121737472,0.00135763,124.08,124.01,208.2845]
[1767121737473,0.00135763,124.08,124.02,7.2635]
[1767121737674,3.51393545,124.08,124.02,15.95]
[1767121738085,3.51393545,124.06,124.0,15.95]
[1767121738577,0.05081763,124.04,124.02,0.05279766]
[1767121738776,0.05081763,124.04,124.0,15.95]
[1767121738976,3.56475308,124.04,123.98,23.2159]
[1767121739384,3.56475308,124.04,123.99,15.28]
[1767121739882,3.56475308,124.04,124.0,0.05971469]
[1767121740578,3.56475308,124.04,123.97,15.28]
[1767121740784,3.51393545,124.04,123.97,15.28]
[1767121741578,10.77693545,124.04,123.99,0.05473521]
[1767121741781,0.05660072,124.02,123.99,0.05473521]
[1767121742982,95.24,124.05,123.99,15.33473521]
[1767121743180,3.51393545,124.07,123.99,15.33473521]
[1767121743374,3.51393545,124.07,124.0,15.28]
[1767121743977,0.0537693,124.05,124.02,0.05203676]
[1767121744580,0.0037693,124.05,124.02,15.33203676]
[1767121746383,126.1723288,124.14,124.02,15.33203676]
[1767121746384,3.51393545,124.12,124.03,15.28]
[1767121747283,0.05641679,124.09,124.06,0.05392569]
[1767121748990,2.30444751,124.09,124.06,0.05392569]
[1767121750079,0.05641679,124.09,124.06,0.05392569]
[1767121750382,2.30444751,124.09,124.06,0.05392569]
[1767121750587,2.30444751,124.09,124.03,15.28]
[1767121751175,2.24803072,124.07,124.01,15.28]
[1767121751486,0.05505974,124.05,124.03,0.05251188]
[1767121751681,2.24803072,124.06,124.03,0.05251188]
[1767121752688,0.05209445,124.06,124.03,0.05251188]
[1767121753281,0.00209445,124.06,124.03,15.33251188]
[1767121755996,0.00209445,124.06,124.03,0.05251188]
[1767121757294,0.00209445,124.06,124.03,16.96251188]
[1767121766490,0.00209445,124.06,124.03,0.05251188]
[1767121771400,0.00209445,124.06,124.03,16.96251188]
[1767121771593,118.90792581,124.15,124.03,16.96251188]
[1767121771796,214.16792581,124.15,124.03,16.91]
[1767121772294,95.26,124.14,124.03,16.91]
[1767121772699,7.2586,124.12,124.05,16.91]
[1767121772899,0.05315288,124.1,124.07,0.06006853]
[1767121780303,2.24783057,124.08,124.02,16.91]
[1767121781409,0.05357398,124.06,124.04,0.05874403]
[1767121782904,2.30140455,124.06,124.04,0.05874403]
[1767121783104,0.05357398,124.06,124.04,0.05874403]
[1767121787303,0.05357398,124.06,124.02,16.91]
[1767121788314,0.05357398,124.06,124.03,0.05934792]
[1767121788714,2.24783057,124.05,124.0,16.23]
[1767121789617,2.24783057,124.05,124.01,0.05401253]
[1767121790109,7.31527398,124.06,124.01,0.05401253]
[1767121790310,2.24783057,124.05,124.01,0.05401253]
[1767121792118,7.31527398,124.06,124.01,0.05401253]
[1767121792330,2.24783057,124.05,124.01,0.05401253]
[1767121793232,0.05357398,124.06,124.01,16.28401253]
[1767121800340,2.24783057,124.05,124.01,0.05401253]
[1767121801332,2.24783057,124.03,124.01,0.05401253]
[1767121801537,2.24783057,124.02,123.98,16.51]
[1767121802228,122.69099335,124.1,123.98,16.51]
[1767121802539,2.24783057,124.09,124.03,16.56190304]
[1767121802732,95.28,124.1,124.03,18.80973361]
[1767121803134,2.24783057,124.09,124.03,18.80973361]
[1767121803334,2.24783057,124.09,124.03,18.75783057]
[1767121803536,0.05800883,124.07,124.05,0.05511707]
[1767121804137,0.05800883,124.07,124.01,16.51]
[1767121804939,0.05800883,124.07,124.01,18.75783057]
[1767121805241,0.05800883,124.07,124.03,0.05933751]
[1767121805442,2.24783057,124.06,123.99,16.51]
[1767121806641,0.0587634,124.04,124.01,16.56830462]
[1767121806942,2.24783057,124.06,124.01,16.56830462]
[1767121807737,0.05198138,124.05,124.01,16.56830462]
[1767121810142,0.05198138,124.05,124.01,0.05830462]
[1767121810637,3.5151292,124.04,123.97,16.51]
[1767121811038,98.7951292,124.04,123.97,16.51]
[1767121811535,0.06031261,124.02,123.99,0.05800054]
[1767121814741,7.32441261,124.02,123.99,0.05800054]
[1767121818937,7.32441261,124.02,123.97,16.51]
[1767121819333,7.32441261,124.02,123.94,7.2685]
[1767121819334,7.2648,124.01,123.95,16.21]
[1767121819539,3.5151292,123.99,123.89,16.21]
[1767121820044,3.5151292,123.99,123.88,211.9756292]
[1767121820045,98.8151292,123.99,123.93,0.05183674]
[1767121820745,7.2667,123.98,123.93,0.05183674]
[1767121820953,0.05948425,123.97,123.93,0.05183674]
[1767121821250,95.3,123.99,123.93,16.26183674]
[1767121822440,0.06053289,123.97,123.93,16.26183674]
[1767121823042,0.00053289,123.97,123.93,23.53103674]
[1767121823339,0.00053289,123.97,123.94,16.21]
[1767121825842,77.84053289,123.99,123.94,16.21]
[1767121826048,112.9914,124.03,123.93,0.05183674]
[1767121826049,16.94,124.02,123.93,0.05183674]
[1767121826250,20.4551292,124.02,123.92,3.5151292]
[1767121826552,20.4551292,124.02,123.9,113.1012]
[1767121826750,20.4551292,124.02,123.91,3.5151292]
[1767121826944,0.05753166,123.98,123.95,0.05671051]
[1767121827149,16.99753166,123.98,123.95,0.05671051]
[1767121830360,0.05753166,123.98,123.95,0.05671051]
[1767121839662,7.2651,124.01,123.95,0.05671051]
[1767121839867,16.94,124.04,123.95,0.05671051]
[1767121840169,16.94,124.04,123.96,3.5151292]
[1767121840560,0.0589964,124.01,123.99,0.0582447]
[1767121841069,16.94,124.04,123.99,0.0582447]
[1767121841566,24.2028,124.04,123.99,0.0582447]
[1767121841960,0.06014545,124.03,123.99,0.0582447]
[1767121845571,17.00014545,124.03,123.99,0.0582447]
[1767121845768,17.00014545,124.03,123.95,102.6277]
[1767121846072,24.2034,124.03,123.96,7.2674]
[1767121846666,0.0544912,124.01,123.98,0.05194178]
[1767121852273,15.5044912,124.01,123.98,0.05194178]
[1767121852481,15.5044912,124.01,123.9,0.32869]
[1767121852482,15.45,123.99,123.9,0.32869]
[1767121852773,15.45,123.99,123.91,95.34]
[1767121853077,15.45,123.99,123.91,98.8551292]
[1767121853377,22.7158,123.99,123.92,7.2697]
[1767121853571,0.0566661,123.97,123.94,0.05475883]
[1767121856272,22.7148,124.01,123.94,0.05475883]
[1767121856578,15.45,124.0,123.94,0.05475883]
[1767121857078,15.45,124.02,123.94,3.56988803]
[1767121857380,0.05364187,123.99,123.97,0.05425268]
[1767121858478,0.00364187,123.99,123.97,0.05425268]
[1767121863382,12.53,124.04,123.97,0.05425268]
[1767121863572,12.53,124.04,123.96,208.4077]
[1767121863767,12.53,124.04,123.97,3.5151292]
[1767121863979,12.53,124.04,123.97,10.7818292]
[1767121864381,0.05607083,124.02,123.99,0.06038363]
[1767121864681,12.53,124.04,123.99,0.06038363]
[1767121865574,0.05516141,124.03,123.99,0.06038363]
[1767121865770,12.53,124.08,124.01,3.5151292]
[1767121866678,12.53,124.08,124.01,10.7794292]
[1767121866869,0.056693,124.06,124.03,0.05659862]
[1767121867074,12.53,124.08,124.03,3.57172782]
[1767121867278,12.53,124.08,124.04,95.34]
[1767121867781,12.53,124.1,124.04,95.34]
[1767121868282,0.05621468,124.08,124.06,0.05693604]
[1767121869588,12.53,124.12,124.06,0.05693604]
[1767121870374,12.53,124.14,124.06,0.05693604]
[1767121870577,12.53,124.14,124.07,2.24670478]
[1767121870778,0.05384639,124.12,124.09,0.05211852]
[1767121872490,12.58384639,124.12,124.09,0.00211852]
[1767121877192,0.05384639,124.12,124.09,0.00211852]
[1767121878091,0.05384639,124.12,124.09,2.2488233]
[1767121878297,11.32,124.16,124.1,97.54670478]
[1767121878496,11.32,124.16,124.11,2.24670478]
[1767121878799,13.56670478,124.2,124.13,2.24670478]
[1767121879096,11.32,124.2,124.13,2.24670478]
[1767121879288,13.62364029,124.18,124.11,2.24670478]
[1767121879592,13.56670478,124.18,124.1,95.3]
[1767121879798,11.32,124.16,124.1,97.54670478]
[1767121880298,11.37222606,124.14,124.08,97.54670478]
[1767121880498,11.32,124.14,124.08,95.3]
[1767121880896,11.32,124.14,124.03,112.9862]
[1767121881194,13.56670478,124.14,124.07,2.24670478]
[1767121881398,0.05939156,124.12,124.09,0.05631834]
[1767121881898,11.37939156,124.12,124.06,2.24670478]
[1767121882305,11.37939156,124.12,124.07,2.24670478]
[1767121882897,0.05939156,124.12,124.08,2.29924626]
[1767121883093,11.32,124.14,124.09,2.24670478]
[1767121883294,11.32,124.16,124.1,2.24670478]
[1767121884090,0.06017011,124.14,124.12,0.06017325]
[1767121886601,11.38017011,124.14,124.12,0.00017325]
[1767121888104,11.32,124.22,124.12,2.24687803]
[1767121888308,11.32,124.2,124.12,2.24670478]
[1767121888606,11.32,124.18,124.12,2.24670478]
[1767121888905,11.32,124.17,124.11,95.26]
[1767121889105,0.05168584,124.15,124.13,0.0559609]
[1767121889306,11.37168584,124.15,124.1,2.24670478]
[1767121890301,11.37168584,124.15,124.11,0.05430382]
[1767121892111,11.32,124.14,124.06,7.2611]
[1767121892306,11.32,124.14,124.07,97.50670478]
[1767121892501,13.56670478,124.14,124.06,102.5211]
[1767121892707,11.32,124.14,124.06,104.76780478]
[1767121892908,13.56670478,124.14,124.06,104.76780478]
[1767121893209,0.05966386,124.11,124.09,0.05291986]
[1767121894006,11.37966386,124.11,124.09,0.00291986]
[1767121895411,13.62636864,124.11,124.04,95.26]
[1767121895611,13.62636864,124.11,124.03,97.50670478]
[1767121895913,13.56670478,124.11,124.03,97.50670478]
[1767121896116,20.82560478,124.11,124.04,7.2626]
[1767121896412,0.0574585,124.09,124.06,0.06179994]
[1767121899018,0.0574585,124.09,124.06,2.30850472]
[1767121900124,0.0574585,124.09,124.06,0.06179994]
[1767121914927,8.68,124.13,124.06,0.06179994]
[1767121915322,8.68,124.13,124.07,97.52670478]
[1767121915526,8.68,124.13,124.07,95.28]
[1767121915932,15.9383,124.12,124.07,95.28]
[1767121916135,0.05825557,124.11,124.09,0.00424444]
[1767121916432,8.73825557,124.11,124.09,0.00424444]
[1767121917837,15.99695557,124.11,124.09,0.00424444]
[1767121919438,8.73825557,124.11,124.09,0.00424444]
[1767121924333,0.05825557,124.11,124.09,0.00424444]
[1767121924534,7.66,124.13,124.09,2.25094922]
[1767121924736,7.66,124.13,124.09,0.00424444]
[1767121924935,7.66,124.11,124.09,0.00424444]
[1767121925537,7.71203875,124.11,124.06,95.28]
[1767121926436,7.71203875,124.11,124.07,0.05382044]
[1767121926830,7.66,124.1,124.07,0.00382044]
[1767121927640,14.9201,124.09,124.07,0.00382044]
[1767121928643,7.66,124.09,124.07,0.00382044]
[1767121930545,14.9199,124.09,124.07,0.00382044]
[1767121930745,7.66,124.08,124.07,0.00382044]
[1767121935036,7.66,124.1,124.07,0.00382044]
[1767121936047,0.05203875,124.11,124.07,0.00382044]
[1767121936943,7.12203875,124.11,124.07,0.00382044]
[1767121941556,7.07,124.1,124.07,0.00382044]
[1767121942147,7.07,124.09,124.07,0.00382044]
[1767121948560,7.07,124.08,124.07,0.00382044]
[1767121950754,7.07,124.1,124.07,0.00382044]
[1767121951358,7.07,124.08,124.01,14.81066137]
[1767121952467,0.05845134,124.06,124.03,0.05426378]
[1767121956065,7.07,124.08,124.03,7.31736378]
[1767121957169,0.05526797,124.07,124.03,7.31736378]
[1767121960868,7.07,124.11,124.04,98.81304299]
[1767121961872,0.0554864,124.09,124.06,0.05888917]
[1767121963378,7.1254864,124.09,124.06,0.05888917]
[1767121963683,7.1254864,124.09,124.04,98.81304299]
[1767121964479,7.1254864,124.09,124.05,0.05729439]
[1767121965982,14.3281,124.12,124.06,3.51304299]
[1767121966382,6.21,124.11,124.06,3.51304299]
[1767121966983,0.05555969,124.1,124.07,0.06040613]
[1767121969979,6.21,124.11,124.07,0.06040613]
[1767121970874,0.05662901,124.1,124.07,0.06040613]
[1767121972981,6.26662901,124.1,124.07,0.06040613]
[1767121975782,6.21,124.15,124.07,3.57344912]
[1767121975986,6.21,124.15,124.07,3.51304299]
[1767121976685,6.21,124.15,124.07,10.77394299]
[1767121976886,0.05672678,124.12,124.1,0.06040142]
[1767121978884,6.21,124.14,124.1,0.06040142]
[1767121979986,0.06201832,124.13,124.1,0.06040142]
[1767121980387,5.91,124.16,124.1,95.34040142]
[1767121981187,5.91,124.16,124.08,3.51304299]
[1767121981380,5.91,124.15,124.06,3.51304299]
[1767121981582,5.91,124.15,124.04,120.5174689]
[1767121981583,5.91,124.14,124.05,95.28]
[1767121981981,5.91,124.14,124.04,3.51304299]
[1767121981982,5.91,124.11,124.04,7.2623]
[1767121982180,5.91,124.11,124.06,0.05653924]
[1767121982389,0.05137193,124.09,124.06,0.05653924]
[1767121984393,5.91,124.16,124.08,3.51304299]
[1767121984596,5.91,124.16,124.08,98.79304299]
[1767121985391,0.05304968,124.13,124.11,0.05384306]
[1767121986396,0.05304968,124.13,124.11,0.00384306]
[1767121989391,5.91,124.14,124.11,0.00384306]
[1767121990593,5.97115638,124.14,124.11,0.00384306]
[1767121991199,0.06115638,124.14,124.11,0.00384306]
[1767121992294,5.91,124.16,124.11,0.00384306]
[1767121992502,5.91,124.16,124.12,2.24523343]
[1767121993802,5.91,124.18,124.13,2.24523343]
[1767121994102,5.91,124.18,124.14,0.05951116]
[1767121997005,5.91,124.18,124.14,2.30474459]
[1767121997500,5.91,124.18,124.14,0.05951116]
[1767121998504,13.1646,124.18,124.14,0.05951116]
[1767121998801,4.61,124.17,124.14,0.05951116]
[1767121999800,4.61,124.2,124.15,2.24523343]
[1767122000206,4.61,124.19,124.14,2.30474459]
[1767122003506,4.61,124.19,124.14,0.05951116]
[1767122003707,11.8641,124.19,124.14,0.05951116]
[1767122003900,4.61,124.18,124.14,0.05951116]
[1767122007001,4.61,124.18,124.14,2.30474459]
[1767122009499,4.61,124.18,124.14,0.05951116]
[1767122013913,4.61,124.18,124.14,2.30474459]
[1767122014513,4.61,124.18,124.14,0.05951116]
[1767122017216,4.61,124.18,124.11,7.2582]
[1767122017420,4.61,124.18,124.11,104.72343343]
[1767122017822,4.61,124.18,124.12,2.24523343]
[1767122018321,4.66831277,124.16,124.12,2.24523343]
[1767122018722,4.66831277,124.16,124.11,102.4782]
[1767122019021,4.66831277,124.16,124.12,2.24523343]
[1767122019411,4.66831277,124.16,124.13,0.0571575]
[1767122019920,4.66831277,124.16,124.12,2.24523343]
[1767122020825,4.66831277,124.16,124.13,0.0535932]
[1767122022330,4.66831277,124.16,124.13,0.0035932]
[1767122022627,4.66831277,124.16,124.09,0.33034]
[1767122023021,4.61,124.15,124.09,0.33034]
[1767122023526,0.05650784,124.13,124.11,0.05856542]
[1767122024024,4.61,124.15,124.11,0.05856542]
[1767122024934,0.05174254,124.14,124.11,0.05856542]
[1767122026022,0.05174254,124.14,124.11,2.30379885]
[1767122026422,0.05174254,124.14,124.11,0.05856542]
[1767122031232,0.05174254,124.14,124.11,3.37856542]
[1767122032029,0.05174254,124.14,124.11,5.62379885]
[1767122032723,0.05174254,124.14,124.11,2.30379885]
[1767122034530,0.05174254,124.14,124.11,0.05856542]
[1767122037334,3.30174254,124.14,124.11,0.05856542]
[1767122037533,3.30174254,124.14,124.09,0.33034]
[1767122038530,3.30174254,124.14,124.1,0.05890555]
[1767122039136,0.05174254,124.14,124.1,5.62413898]
[1767122039530,0.05174254,124.14,124.1,3.37890555]
[1767122041536,3.36174254,124.14,124.1,0.05890555]
[1767122045742,2.24523343,124.12,124.1,0.05890555]
[1767122045935,3.31,124.11,124.09,0.00034]
[1767122046940,3.36338061,124.11,124.05,9.50703343]
[1767122047134,3.36338061,124.11,124.05,12.87703343]
[1767122047335,3.36338061,124.11,124.06,2.24523343]
[1767122047737,3.36338061,124.11,124.05,10.6318]
[1767122047933,3.36338061,124.11,124.06,2.24523343]
[1767122048141,3.36338061,124.11,124.07,0.05845371]
[1767122050140,0.05338061,124.11,124.07,5.67368714]
[1767122050343,0.05338061,124.11,124.07,12.93438714]
[1767122051241,0.05338061,124.11,124.08,5.61523343]
[1767122051434,0.05338061,124.11,124.09,2.24523343]
[1767122051635,3.31,124.14,124.1,2.24523343]
[1767122052644,0.0574345,124.13,124.11,0.06160576]
[1767122053645,3.3674345,124.13,124.11,0.00160576]
[1767122058145,0.0574345,124.13,124.11,0.00160576]
[1767122062651,3.25,124.15,124.11,0.00160576]
[1767122063654,0.06164454,124.14,124.11,0.00160576]
[1767122075755,3.31164454,124.14,124.11,0.00160576]
[1767122077554,10.56864454,124.14,124.11,0.00160576]
[1767122077754,3.25,124.13,124.11,0.00160576]
[1767122097190,7.31864454,124.14,124.11,0.00160576]
[1767122097191,3.42164454,124.14,124.11,0.00160576]
[1767122097783,3.36,124.13,124.11,0.00160576]
[1767122101294,10.6176,124.13,124.11,0.00160576]
[1767122101493,3.22,124.12,124.04,18.01701863]
[1767122101688,3.22,124.16,124.07,3.51038612]
[1767122101893,3.22,124.13,124.08,3.23]
[1767122102588,0.06053801,124.12,124.09,6.79400142]
[1767122102785,3.22,124.15,124.1,3.23]
[1767122103096,3.22,124.15,124.09,0.0536153]
[1767122103800,3.28076326,124.13,124.09,0.0536153]
[1767122105603,3.28076326,124.13,124.09,0.0036153]
[1767122114606,3.28076326,124.13,124.09,2.24998161]
[1767122115107,3.28076326,124.13,124.09,0.0036153]
[1767122124120,0.06076326,124.13,124.09,3.2236153]
[1767122126921,0.06076326,124.13,124.09,5.46998161]
[1767122127721,3.49,124.19,124.13,3.22]
[1767122127913,3.49,124.19,124.12,2.24636631]
[1767122128505,3.49,124.18,124.12,5.46636631]
[1767122128710,0.05855452,124.16,124.14,0.06159178]
[1767122130318,3.49,124.18,124.14,0.06159178]
[1767122131020,3.49,124.18,124.14,2.30795809]
[1767122131326,0.05984995,124.17,124.14,2.30795809]
[1767122131514,0.05984995,124.17,124.14,0.06159178]
[1767122138217,3.54984995,124.17,124.14,0.00159178]
[1767122140228,5.79621626,124.17,124.14,0.00159178]
[1767122140628,3.49,124.16,124.14,0.00159178]
[1767122147334,0.05984995,124.17,124.14,0.00159178]
[1767122155050,0.05984995,124.17,124.14,3.37159178]
[1767122155255,0.05984995,124.17,124.14,0.00159178]
[1767122155848,3.35984995,124.17,124.14,0.00159178]
[1767122156341,3.3,124.2,124.14,0.00159178]
[1767122156541,3.3,124.18,124.12,5.61636631]
[1767122156746,3.3,124.15,124.08,3.37]
[1767122157645,0.05949639,124.13,124.1,0.05819089]
[1767122158952,3.35949639,124.13,124.1,0.05819089]
[1767122159151,3.35949639,124.13,124.07,3.36]
[1767122159355,3.49,124.12,124.07,3.36]
[1767122160041,3.49,124.12,124.08,0.05142029]
[1767122160240,5.73636631,124.12,124.08,0.05142029]
[1767122160445,5.73636631,124.12,124.08,0.00142029]
[1767122160446,3.49,124.11,124.08,0.00142029]
[1767122161052,5.73636631,124.11,124.08,0.00142029]
[1767122162346,3.49,124.11,124.08,0.00142029]
[1767122162547,5.73636631,124.11,124.08,0.00142029]
[1767122164160,3.49,124.11,124.08,0.00142029]
[1767122164362,5.73636631,124.11,124.08,0.00142029]
[1767122166159,3.49,124.11,124.08,0.00142029]
[1767122166362,3.49,124.1,124.08,0.00142029]
[1767122166550,3.54388711,124.1,124.08,0.00142029]
[1767122169758,3.49,124.09,124.03,5.60636631]
[1767122170258,3.49,124.09,124.04,2.24636631]
[1767122170461,3.49,124.09,124.04,5.60636631]
[1767122170862,0.05400578,124.08,124.05,0.05685625]
[1767122173065,3.54400578,124.08,124.05,0.05685625]
[1767122176967,3.54400578,124.08,124.01,10.614]
[1767122177166,3.54400578,124.08,124.01,3.35]
[1767122177556,3.54400578,124.08,124.02,7.2639]
[1767122177969,3.54400578,124.08,124.04,0.057747]
[1767122184769,3.28,124.16,124.05,3.35]
[1767122185071,3.28,124.16,124.08,3.35]
[1767122185272,7.2555,124.17,124.06,3.35]
[1767122185273,3.28,124.14,124.06,3.35]
[1767122185769,3.28,124.14,124.09,0.05226641]
[1767122185968,3.33113205,124.11,124.09,0.00226641]
[1767122192974,3.33113205,124.11,124.03,10.6129]
[1767122193176,3.28,124.11,124.03,10.6129]
[1767122193971,0.06123347,124.08,124.06,0.05229661]
[1767122194176,0.0530308,124.08,124.06,0.05229661]
[1767122196177,3.28,124.11,124.06,7.31379661]
[1767122197285,0.06014607,124.1,124.06,7.31379661]
[1767122201286,0.06014607,124.1,124.06,0.05229661]
[1767122201982,0.06014607,124.1,124.06,3.40229661]
[1767122220103,3.38,124.16,124.09,3.21]
[1767122220596,3.38,124.15,124.09,3.21]
[1767122220788,3.38,124.14,124.09,3.21]
[1767122221096,3.43370328,124.13,124.1,0.00448064]
[1767122221398,0.05370328,124.13,124.1,0.00448064]
[1767122221607,3.43370328,124.13,124.1,0.00448064]
[1767122224205,10.69140328,124.13,124.1,0.00448064]
[1767122224400,3.42,124.12,124.04,7.2623]
[1767122224705,3.42,124.12,124.03,3.42]
[1767122225604,0.05847535,124.09,124.06,0.05263392]
[1767122249945,3.49847535,124.09,124.06,0.00263392]
[1767122250242,5.68822449,124.08,124.06,0.00263392]
[1767122251446,3.44,124.08,124.06,0.00263392]
[1767122253546,3.44,124.08,124.02,3.27]
[1767122254553,0.05191723,124.06,124.04,0.05574827]
[1767122260254,3.49191723,124.06,124.0,10.5346]
[1767122260558,3.49191723,124.06,123.99,102.84815403]
[1767122260559,3.49191723,124.06,123.99,98.57]
[1767122261361,5.74014172,124.06,124.01,0.05711014]
[1767122261745,0.05191723,124.06,124.01,5.57533463]
[1767122261954,0.05191723,124.06,124.02,3.27]
[1767122262560,0.05191723,124.06,124.02,5.51822449]
[1767122262760,0.05191723,124.06,124.03,3.27]
[1767122264563,0.05191723,124.06,124.03,5.51822449]
[1767122265663,3.44,124.08,124.04,2.24822449]
[1767122266766,0.05642146,124.07,124.05,0.0610704]
[1767122279682,3.37642146,124.07,124.05,0.0610704]
[1767122279987,3.37642146,124.07,124.01,3.52]
[1767122280192,3.37642146,124.07,124.01,5.76822449]
[1767122280489,3.37642146,124.07,124.01,3.52]
[1767122280787,10.5817,124.06,124.01,3.52]
[1767122281082,3.32,124.05,123.99,11.06815403]
[1767122281686,3.32,124.05,123.99,3.52]
[1767122281988,0.05986239,124.03,124.01,0.05218783]
[1767122282188,10.6416,124.07,124.01,3.27218783]
[1767122282890,10.6416,124.07,124.01,5.52041232]
[1767122283091,3.38,124.06,124.01,5.52041232]
[1767122283391,0.05148462,124.05,124.01,5.52041232]
[1767122283983,0.05148462,124.05,124.01,3.27218783]
[1767122284184,0.05148462,124.05,124.01,5.52041232]
[1767122286989,0.05148462,124.05,124.01,3.27218783]
[1767122299701,3.36148462,124.05,123.97,7.54815403]
[1767122299904,3.31,124.05,123.97,7.54815403]
[1767122300701,0.05160566,124.02,124.0,0.05326389]
[1767122301100,0.00160566,124.02,124.0,0.05326389]
[1767122301705,0.00160566,124.02,124.0,1.48326389]
[1767122303207,10.5711,124.07,124.0,1.48326389]
[1767122303510,7.2611,124.07,124.0,1.43]
[1767122304215,0.05519949,124.05,124.02,1.4828643]
[1767122305603,3.31,124.08,124.02,1.4828643]
[1767122306512,3.31,124.1,124.03,1.38]
[1767122306810,3.31,124.1,124.05,0.0536183]
[1767122306811,0.05365893,124.08,124.05,0.0536183]
[1767122311802,3.36365893,124.08,124.05,0.0536183]
[1767122318119,10.62415893,124.08,124.05,0.0536183]
[1767122321922,3.36365893,124.08,124.05,0.0536183]
[1767122325126,0.05365893,124.08,124.05,0.0536183]
[1767122326622,0.00365893,124.08,124.05,1.4336183]
[1767122327214,3.22,124.11,124.06,1.33]
[1767122328128,0.05428719,124.1,124.06,1.33]
[1767122334631,3.27428719,124.1,124.05,0.0536183]
[1767122335536,7.2601,124.09,124.05,0.0536183]
[1767122335932,10.4801,124.09,124.05,0.0536183]
[1767122338238,3.22,124.09,124.05,0.0536183]
[1767122339233,0.05428719,124.1,124.05,1.3836183]
[1767122339633,7.31358719,124.1,124.05,1.3836183]
[1767122339846,0.05428719,124.1,124.05,1.3836183]
[1767122343246,0.05428719,124.1,124.06,1.33]
[1767122344946,3.27428719,124.1,124.06,1.33]
[1767122345141,3.22,124.09,124.05,0.0536183]
[1767122346641,10.48,124.09,124.05,0.0536183]
[1767122347743,3.22,124.08,124.05,0.0536183]
[1767122348950,10.4805,124.08,124.03,1.33]
[1767122350049,0.05496743,124.07,124.04,0.06163732]
[1767122359563,0.05496743,124.07,124.04,1.39163732]
[1767122371572,0.05496743,124.07,124.04,0.06163732]
[1767122371768,3.44496743,124.07,124.04,0.00163732]
[1767122372071,3.39,124.05,123.99,8.93815403]
[1767122372272,3.39,124.05,123.99,1.39]
[1767122373064,3.39,124.05,124.01,0.05481315]
[1767122373272,0.06056107,124.03,124.01,0.05481315]
[1767122373667,0.00056107,124.03,124.01,1.44481315]
[1767122384573,3.39,124.08,124.01,3.69381192]
[1767122384779,3.39,124.08,124.03,1.33]
[1767122385387,3.39,124.1,124.03,1.33]
[1767122385581,3.39,124.1,124.05,1.33]
[1767122385787,0.06055445,124.08,124.05,1.39163018]
[1767122390590,0.00055445,124.08,124.06,3.57899877]
[1767122390888,0.00055445,124.08,124.06,1.33]
[1767122391090,10.4879,124.13,124.07,3.51899877]
[1767122392190,0.06162337,124.11,124.09,0.05791882]
[1767122400808,10.4864,124.15,124.1,3.51899877]
[1767122401104,12.73539877,124.15,124.1,1.27]
[1767122401308,3.23,124.14,124.07,1.27]
[1767122401511,2.24899877,124.13,124.07,1.27]
[1767122401894,0.00277586,124.11,124.09,1.3300514]
[1767122407720,0.00277586,124.11,124.09,0.0600514]
[1767122408716,0.00277586,124.11,124.02,7.54815403]